bitfinex-derivatives/quotes_ETHF0:USTF0_20220103
["timestamp","ask_amount","ask_price","bid_price","bid_amount"]
[1641170860476,0.128157,3809.6,3809.4,0.5537]
[1641170860777,0.128157,3809.6,3809.4,0.783691]
[1641170861681,3.19176553,3809.7,3809.4,0.783691]
[1641170863280,2.00479,3809.7,3809.4,0.783691]
[1641170863482,2.132947,3809.7,3809.4,0.783691]
[1641170863982,3.31992253,3809.7,3809.4,0.783691]
[1641170864182,3.19176553,3809.7,3809.4,0.783691]
[1641170866589,1.18697553,3809.6,3809.4,0.783691]
[1641170869085,1.18697553,3809.6,3809.4,0.5537]
[1641170869286,1.18697553,3809.6,3809.1,1.19016584]
[1641170870486,2.00479,3809.4,3809.1,1.19016584]
[1641170871289,2.00479,3809.4,3809.1,0.09310901]
[1641170871290,0.88986128,3809.2,3809.1,0.09310901]
[1641170873089,1.17064695,3809.3,3809.1,0.09310901]
[1641170873289,0.55863458,3809.2,3808.7,0.09310901]
[1641170874291,1.18592034,3808.9,3808.7,0.09310901]
[1641170874690,0.128157,3808.8,3808.7,0.09310901]
[1641170875291,0.128157,3808.8,3808.6,2.00479]
[1641170876090,0.83509309,3808.8,3808.6,2.00479]
[1641170877695,0.128157,3808.8,3808.6,2.234781]
[1641170878995,0.128157,3808.8,3808.6,2.00479]
[1641170882600,0.128157,3808.8,3808.7,0.229991]
[1641170883000,0.128157,3808.8,3808.6,2.00479]
[1641170884503,0.128157,3808.8,3808.1,2.00479]
[1641170884704,2.00479,3808.7,3808.1,2.00479]
[1641170885405,2.63439,3808.7,3808.1,2.00479]
[1641170900026,2.63439,3808.7,3807.5,3.50479]
[1641170900230,2.63439,3808.7,3807.5,3.627146]
[1641170900728,2.63439,3808.7,3807.5,2.127146]
[1641170900927,2.63439,3808.7,3807.5,3.627146]
[1641170901930,2.63439,3808.7,3807.5,2.127146]
[1641170902331,2.63439,3808.7,3807.5,2.00479]
[1641170903230,2.63439,3808.7,3807.5,3.50479]
[1641170904233,0.6296,3808.7,3807.5,1.5]
[1641170904432,31.60487927,3808.8,3807.4,0.122356]
[1641170904635,31.60487927,3808.8,3807.3,25.1838]
[1641170905033,2.00479,3808.5,3807.6,2.00479]
[1641170909040,2.00479,3808.0,3807.3,25.1838]
[1641170909237,2.00479,3808.0,3807.3,0.128157]
[1641170909439,0.88188253,3807.8,3807.3,0.128157]
[1641170911740,0.88188253,3807.8,3807.2,2.00479]
[1641170912141,0.88188253,3807.8,3807.2,2.132947]
[1641170913044,0.88188253,3807.8,3807.2,2.00479]
[1641170913242,1.46038253,3807.8,3807.3,0.09314761]
[1641170914444,1.46038253,3807.8,3807.2,2.00479]
[1641170914645,0.88188253,3807.6,3807.2,2.00479]
[1641170916646,0.88188253,3807.6,3807.1,0.128157]
[1641170917246,2.88667253,3807.6,3807.1,0.128157]
[1641170917445,2.88667253,3807.6,3806.8,3.19495584]
[1641170918852,0.88188253,3807.5,3806.8,3.19495584]
[1641170919652,0.88188253,3807.5,3806.9,0.09429767]
[1641170925056,0.88188253,3807.4,3806.9,0.09429767]
[1641170926561,2.00479,3807.6,3806.9,0.09429767]
[1641170926562,2.88667253,3807.6,3806.9,0.09429767]
[1641170926961,2.88667253,3807.6,3806.9,0.22245467]
[1641170927161,0.88188253,3807.6,3807.1,1.5]
[1641170927362,1.18592034,3807.9,3807.5,2.00479]
[1641170927562,1.18592034,3807.9,3807.5,3.50479]
[1641170927762,1.18592034,3807.9,3807.5,3.31706913]
[1641170927962,1.18592034,3807.9,3807.5,2.00479]
[1641170928165,1.18592034,3807.9,3807.5,3.50479]
[1641170928361,1.18592034,3807.9,3807.5,2.00479]
[1641170929464,2.00479,3808.5,3807.6,1.28446351]
[1641170930267,2.00479,3808.5,3807.7,0.128157]
[1641170931069,0.55881944,3808.4,3807.7,0.128157]
[1641170931770,0.55881944,3808.4,3807.8,0.09429767]
[1641170934380,1.74473978,3808.4,3807.8,0.09429767]
[1641170935281,1.48117283,3808.3,3807.8,0.09429767]
[1641170935481,1.18592034,3808.0,3807.9,1.19016584]
[1641170935882,1.18592034,3808.0,3807.9,1.42015684]
[1641170936281,1.48117283,3808.1,3807.9,0.229991]
[1641170937084,1.48117283,3808.2,3808.0,0.09429767]
[1641170938183,1.48117283,3808.2,3808.1,0.229991]
[1641170938385,1.48117283,3808.2,3808.0,0.09429767]
[1641170939185,1.48117283,3808.2,3807.8,1.28446351]
[1641170940087,1.48117283,3808.2,3807.9,1.19016584]
[1641170940287,1.48117283,3808.2,3808.0,0.229991]
[1641170940487,1.48117283,3808.2,3807.9,1.19016584]
[1641170941192,1.48117283,3808.2,3808.0,0.229991]
[1641170941392,2.03999227,3808.4,3808.0,0.229991]
[1641170941591,2.03999227,3808.4,3808.0,1.19016584]
[1641170945093,2.03999227,3808.4,3808.0,1.81636584]
[1641170945996,0.55881944,3808.4,3808.1,1.28446351]
[1641170946194,0.55881944,3808.4,3808.2,0.229991]
[1641170946495,0.55881944,3808.4,3808.1,1.28446351]
[1641170947296,0.55881944,3808.4,3808.2,1.19016584]
[1641170947498,0.55881944,3808.4,3808.2,1.42015684]
[1641170947996,0.55881944,3808.4,3808.2,1.51445451]
[1641170948195,0.55881944,3808.4,3808.2,1.28446351]
[1641170949197,0.55881944,3808.4,3808.0,0.6262]
[1641170949198,2.03999227,3808.4,3808.1,0.09429767]
[1641170949697,2.03999227,3808.4,3808.2,0.229991]
[1641170949898,2.03999227,3808.4,3808.1,0.09429767]
[1641170950099,1.48117283,3808.3,3807.9,1.19016584]
[1641170953901,2.03999227,3808.4,3808.0,1.19016584]
[1641170954602,1.48117283,3808.3,3808.0,1.19016584]
[1641170955602,1.48117283,3808.3,3808.1,0.229991]
[1641170956206,1.48117283,3808.3,3808.0,2.03246584]
[1641170957006,0.55881944,3808.4,3808.2,1.19016584]
[1641170959907,0.55881944,3808.4,3808.3,0.229991]
[1641170960909,1.77813153,3808.8,3808.3,1.729991]
[1641170961109,23.4688,3809.3,3808.5,1.5]
[1641170961315,0.74516255,3809.2,3808.6,1.44004533]
[1641170961511,2.9741313,3809.2,3808.6,1.44004533]
[1641170961710,1.77898725,3809.2,3808.8,3.50479]
[1641170961910,1.77898725,3809.2,3808.9,0.122356]
[1641170962111,1.77898725,3809.2,3809.0,0.229991]
[1641170962510,2.96786238,3809.5,3809.0,0.229991]
[1641170962911,2.00479,3809.6,3809.0,0.229991]
[1641170964415,2.00479,3809.6,3809.5,0.89376971]
[1641170965313,2.00479,3809.6,3809.5,1.12376071]
[1641170965513,2.00479,3809.6,3809.5,0.89376971]
[1641170966314,2.00479,3809.6,3809.5,1.12376071]
[1641170966916,2.00479,3809.6,3809.5,0.229991]
[1641170967115,2.00479,3809.6,3809.4,0.89376971]
[1641170967517,0.128157,3809.5,3809.4,0.89376971]
[1641170968917,0.128157,3809.5,3809.1,0.89376971]
[1641170969118,2.00479,3809.6,3809.1,0.89376971]
[1641170970619,1.48553992,3809.2,3809.1,0.89376971]
[1641170970819,1.48553992,3809.2,3809.1,1.12376071]
[1641170971221,1.48553992,3809.3,3809.1,0.229991]
[1641170971721,1.48553992,3809.3,3809.0,0.128157]
[1641170971921,1.48553992,3809.3,3809.1,0.229991]
[1641170972123,1.48553992,3809.3,3809.0,0.128157]
[1641170972521,1.48553992,3809.3,3809.2,0.89386198]
[1641170972821,1.48553992,3809.3,3809.2,1.12385298]
[1641170973723,1.48553992,3809.3,3809.2,0.89386198]
[1641170974022,1.48553992,3809.3,3809.2,0.229991]
[1641170974325,1.48553992,3809.3,3809.0,1.31984995]
[1641170975125,1.48553992,3809.3,3809.1,0.229991]
[1641170975325,1.48553992,3809.3,3809.0,1.31984995]
[1641170975526,1.48553992,3809.3,3809.2,0.89385451]
[1641170975925,1.78271864,3809.5,3809.2,0.89385451]
[1641170977726,1.78271864,3809.5,3808.9,1.19169295]
[1641170977928,1.18542375,3809.3,3808.8,2.00479]
[1641170978126,2.70110455,3809.3,3808.8,2.00479]
[1641170979431,1.18542375,3809.1,3808.8,2.00479]
[1641170980729,1.18542375,3809.1,3808.9,0.229991]
[1641170981031,2.99746048,3809.3,3808.8,2.00479]
[1641170981229,2.0405368,3809.2,3808.8,2.00479]
[1641170981933,1.5,3809.1,3808.5,2.00479]
[1641170982331,1.5,3808.8,3808.3,0.89385451]
[1641170982528,1.44076168,3808.7,3808.0,1.19169295]
[1641170982930,1.5,3808.6,3808.0,1.19169295]
[1641170983129,1.44076168,3808.7,3808.0,1.19169295]
[1641170983730,0.55875712,3808.6,3808.0,1.19169295]
[1641170983934,1.18469034,3808.2,3807.9,2.00479]
[1641170984131,1.70429034,3808.2,3807.9,2.00479]
[1641170984331,0.6686294,3808.1,3807.9,2.00479]
[1641170984932,2.41207686,3808.1,3807.9,2.00479]
[1641170986034,1.74344746,3808.0,3807.9,2.00479]
[1641170987838,0.55875712,3808.0,3807.9,2.00479]
[1641170993545,0.55875712,3808.0,3807.9,2.234781]
[1641170993945,0.55875712,3808.0,3807.9,2.00479]
[1641170998551,0.55875712,3808.0,3807.9,0.229991]
[1641170998954,0.55875712,3808.0,3807.6,0.128157]
[1641170999152,1.74344746,3808.0,3807.6,0.128157]
[1641170999653,1.18469034,3808.0,3807.2,2.00479]
[1641170999955,0.6686294,3808.1,3807.2,2.00479]
[1641171000557,0.6686294,3808.1,3807.3,0.128157]
[1641171000754,0.7967864,3808.1,3807.3,0.128157]
[1641171001156,0.55890404,3808.0,3807.3,0.128157]
[1641171001956,0.7967864,3808.1,3807.2,2.00479]
[1641171002356,0.128157,3808.1,3807.2,2.00479]
[1641171003160,0.128157,3808.1,3806.9,24.275456]
[1641171003358,0.88561891,3808.0,3807.0,0.89035579]
[1641171004658,0.88561891,3808.0,3807.4,2.00479]
[1641171004858,1.01377591,3808.0,3807.4,2.00479]
[1641171005159,1.01377591,3808.0,3807.5,0.128157]
[1641171005460,0.88561891,3808.0,3807.5,0.128157]
[1641171006260,0.88561891,3808.2,3807.5,0.128157]
[1641171011169,0.88561891,3808.2,3807.6,1.31224469]
[1641171011373,1e-08,3808.7,3807.8,1.5]
[1641171011670,1.48177968,3808.8,3807.8,1.5]
[1641171011869,1.48177968,3808.8,3807.7,0.122356]
[1641171012070,1.48177968,3808.8,3808.0,1.5]
[1641171012269,1.48177968,3808.8,3808.0,2.1328]
[1641171012469,1.78271864,3809.1,3808.4,1.5]
[1641171012669,1.78271864,3809.1,3808.9,2.00479]
[1641171012870,1.78271864,3809.1,3809.0,0.229991]
[1641171013273,1.47637356,3809.3,3809.0,0.229991]
[1641171014772,1.78271864,3809.6,3809.0,0.229991]
[1641171014972,0.55871845,3809.5,3809.0,0.229991]
[1641171016076,0.55871845,3809.9,3809.0,0.229991]
[1641171016876,0.55871845,3809.9,3809.7,2.00479]
[1641171017076,0.55871845,3809.9,3809.7,2.53489]
[1641171017278,0.55871845,3810.1,3809.7,2.53489]
[1641171017478,0.55871845,3810.1,3809.8,0.229991]
[1641171017675,0.55871845,3810.1,3809.7,2.53489]
[1641171018677,0.55871845,3810.3,3809.7,2.53489]
[1641171019379,0.55871845,3810.0,3809.7,2.53489]
[1641171019579,0.55871845,3810.0,3809.8,0.229991]
[1641171019778,1.08514287,3810.5,3809.8,0.229991]
[1641171019979,1.78271864,3810.7,3809.8,0.229991]
[1641171020784,1.78271864,3810.8,3809.8,0.229991]
[1641171020985,1.78271864,3810.8,3810.6,2.00479]
[1641171021482,1.78271864,3810.8,3810.6,2.234781]
[1641171021682,0.82450154,3811.0,3810.6,2.234781]
[1641171021882,0.82450154,3811.0,3810.6,2.00479]
[1641171022083,0.89389327,3810.9,3810.6,2.00479]
[1641171022485,3.86959077,3810.9,3810.6,2.00479]
[1641171022686,0.229991,3810.8,3810.6,0.44726594]
[1641171022985,2.9756975,3810.9,3810.6,0.44726594]
[1641171023785,2.9756975,3810.9,3810.7,0.076609]
[1641171023985,0.229991,3810.8,3810.6,0.44726594]
[1641171025286,1.18027593,3810.7,3810.6,0.44726594]
[1641171025487,1.18027593,3810.7,3810.6,0.52387494]
[1641171025686,1.18027593,3810.7,3810.6,0.64623094]
[1641171026291,7.593e-05,3810.7,3810.6,0.64623094]
[1641171027191,1.4756975,3811.0,3810.6,0.64623094]
[1641171027592,1.25047886,3811.5,3810.6,0.64623094]
[1641171028892,1.25047886,3811.5,3811.4,2.00479]
[1641171029093,22.9306,3811.9,3811.4,2.64289]
[1641171029292,2.16431,3812.0,3811.4,2.64289]
[1641171029692,2.16431,3812.0,3811.4,2.771047]
[1641171030093,1.4756975,3811.6,3811.4,2.771047]
[1641171030293,1.4756975,3811.6,3811.5,0.076609]
[1641171030994,2.16431,3812.0,3811.5,0.076609]
[1641171031397,2.16431,3812.0,3811.4,2.771047]
[1641171031996,0.6886125,3812.0,3811.4,2.771047]
[1641171032997,0.8864458,3811.6,3811.4,2.771047]
[1641171033196,0.8864458,3811.6,3811.5,0.076609]
[1641171033699,0.229991,3811.6,3811.4,2.00479]
[1641171034497,0.6886125,3812.0,3811.4,2.081399]
[1641171034698,0.6886125,3812.0,3811.4,2.00479]
[1641171038200,0.6886125,3812.0,3811.4,0.21777292]
[1641171039303,0.6886125,3812.0,3811.2,0.128157]
[1641171046907,2.00479,3812.1,3811.2,0.128157]
[1641171047108,2.00479,3812.1,3811.2,0.721857]
[1641171051714,0.128157,3812.0,3811.2,0.721857]
[1641171054622,2.00479,3812.1,3811.2,0.721857]
[1641171055921,2.00479,3812.1,3811.2,2.221857]
[1641171059028,2.00479,3812.6,3811.9,1.5]
[1641171059229,2.00479,3812.6,3812.0,0.250513]
[1641171059430,2.00479,3812.6,3812.2,25.50782056]
[1641171061230,1.78271864,3812.4,3812.2,25.50782056]
[1641171061433,1.78271864,3812.4,3812.3,0.076609]
[1641171062434,1.78271864,3812.4,3812.3,0.35273497]
[1641171062633,2.00479,3812.6,3812.3,1.53110883]
[1641171063532,2.00479,3812.6,3812.3,1.25498286]
[1641171064334,2.00479,3812.6,3812.3,0.076609]
[1641171070640,23.909,3812.9,3812.3,0.076609]
[1641171070840,25.99369,3813.1,3812.3,0.665009]
[1641171071340,2.00479,3813.1,3812.3,0.665009]
[1641171071741,2.00479,3813.1,3812.3,2.669799]
[1641171076946,2.00479,3813.6,3812.3,2.669799]
[1641171076947,2.8873847,3813.6,3812.4,1.31057992]
[1641171077345,2.8873847,3813.6,3812.5,1.5]
[1641171077546,2.8873847,3813.6,3812.6,0.122356]
[1641171077747,2.8873847,3813.6,3813.0,2.00479]
[1641171078049,2.8873847,3813.6,3813.1,0.128157]
[1641171078247,2.00479,3813.6,3813.1,0.128157]
[1641171078947,2.00479,3813.6,3813.1,0.820457]
[1641171082352,49.8507,3813.9,3813.1,0.820457]
[1641171082550,24.0937,3813.9,3813.1,0.820457]
[1641171083749,24.0937,3813.9,3813.5,2.00479]
[1641171083950,2.8873847,3814.3,3813.5,2.00479]
[1641171084650,2.8873847,3814.3,3813.5,2.127146]
[1641171084851,2.8873847,3814.3,3813.5,2.00479]
[1641171085351,2.00479,3814.3,3813.5,2.00479]
[1641171088053,0.128157,3814.2,3813.5,2.00479]
[1641171089355,2.00479,3814.3,3813.5,2.00479]
[1641171090456,0.128157,3814.2,3813.5,2.00479]
[1641171090657,2.00479,3814.3,3813.5,2.00479]
[1641171092963,0.128157,3814.2,3813.5,2.00479]
[1641171093160,0.807057,3814.2,3813.5,2.00479]
[1641171093961,0.807057,3814.2,3813.5,0.128157]
[1641171094361,0.807057,3814.2,3813.0,2.00479]
[1641171095564,0.8825947,3813.8,3813.0,2.00479]
[1641171095964,0.8825947,3813.8,3813.1,0.128157]
[1641171097166,0.8825947,3814.0,3813.1,0.128157]
[1641171098667,0.8825947,3813.9,3813.1,0.128157]
[1641171099465,0.8825947,3814.0,3813.1,0.128157]
[1641171105675,0.8825947,3813.9,3813.1,0.128157]
[1641171106876,0.8825947,3813.9,3813.1,2.132947]
[1641171107478,2.8873847,3814.0,3813.1,2.132947]
[1641171108880,2.8873847,3814.0,3813.1,2.00479]
[1641171109880,0.8825947,3813.8,3813.1,2.00479]
[1641171110079,1.6070947,3813.8,3813.1,2.00479]
[1641171111879,1.6070947,3813.8,3813.1,2.132947]
[1641171112382,0.8825947,3813.7,3813.1,2.132947]
[1641171114684,0.8825947,3813.8,3813.1,2.132947]
[1641171114885,0.8825947,3813.8,3813.1,2.667747]
[1641171115084,0.8825947,3813.8,3813.5,2.00479]
[1641171115284,0.8825947,3813.8,3813.6,0.076609]
[1641171116288,0.8825947,3814.0,3813.6,0.076609]
[1641171117388,0.8825947,3814.2,3813.6,0.076609]
[1641171118388,0.8825947,3814.3,3813.6,0.076609]
[1641171120290,0.128157,3814.2,3813.6,0.076609]
[1641171120490,0.128157,3814.2,3813.5,2.00479]
[1641171120892,1.02116114,3814.2,3813.5,2.00479]
[1641171121494,0.128157,3814.2,3813.5,2.00479]
[1641171121696,1.0107517,3814.2,3813.5,2.00479]
[1641171122494,1.0107517,3814.2,3813.2,1.31029142]
[1641171122694,0.128157,3814.2,3813.2,1.31029142]
[1641171122894,0.128157,3814.2,3813.7,0.88715628]
[1641171122895,1.47099117,3813.9,3813.7,0.88715628]
[1641171123095,1.47099117,3813.9,3813.8,0.076609]
[1641171123699,2.340766,3814.1,3813.8,0.076609]
[1641171123897,0.229991,3814.0,3813.7,0.88715628]
[1641171124499,2.340766,3814.1,3813.8,0.076609]
[1641171124699,0.55804736,3814.0,3813.9,0.128157]
[1641171125701,0.78803836,3814.0,3813.8,0.076609]
[1641171125900,0.55804736,3814.0,3813.8,0.076609]
[1641171126602,0.78803836,3814.0,3813.7,0.88715628]
[1641171128002,0.78803836,3814.0,3813.4,1.17837386]
[1641171128003,0.55804736,3813.9,3813.4,2.06553014]
[1641171128203,0.55804736,3813.9,3813.4,0.88715628]
[1641171128204,2.340766,3813.9,3813.4,0.88715628]
[1641171128404,0.89318956,3813.8,3813.3,0.29793233]
[1641171129405,2.12332456,3813.8,3813.1,1.17837386]
[1641171129603,2.68137192,3813.8,3813.1,1.17837386]
[1641171129804,2.68137192,3813.8,3812.8,19.3602]
[1641171129805,1.78271864,3813.6,3812.8,20.53857386]
[1641171130905,1.78271864,3813.6,3812.9,0.29404879]
[1641171131108,1.4807846,3813.4,3812.9,1.47242265]
[1641171131506,1.4807846,3813.4,3813.0,0.128157]
[1641171132008,0.128157,3813.3,3812.9,1.47242265]
[1641171132407,1.6089416,3813.3,3812.9,0.29404879]
[1641171133908,0.55804736,3813.2,3812.9,1.17837386]
[1641171134108,0.55804736,3813.2,3813.0,0.076609]
[1641171134308,0.55804736,3813.2,3812.9,1.17837386]
[1641171134913,0.229991,3813.1,3812.9,1.17837386]
[1641171135815,0.55804736,3813.2,3812.9,1.17837386]
[1641171136014,1.6089416,3813.3,3813.0,0.076609]
[1641171136415,1.4807846,3813.3,3813.0,0.076609]
[1641171137116,1.4807846,3813.4,3813.1,0.29404879]
[1641171138613,1.4807846,3813.4,3813.2,0.076609]
[1641171138814,1.4807846,3813.4,3813.2,0.627409]
[1641171139717,1.7107756,3813.4,3813.2,0.5508]
[1641171140617,1.7107756,3813.4,3813.2,0.627409]
[1641171141017,1.7107756,3813.4,3813.2,0.5508]
[1641171141220,1.4807846,3813.4,3813.2,0.5508]
[1641171141519,1.4807846,3813.4,3813.3,0.076609]
[1641171142020,1.7107756,3813.4,3813.2,0.5508]
[1641171142221,1.4807846,3813.4,3813.2,0.5508]
[1641171142921,0.229991,3813.3,3813.2,0.5508]
[1641171143220,1.4807846,3813.4,3813.2,0.627409]
[1641171143821,1.4807846,3813.4,3813.2,0.92221114]
[1641171144020,1.7107756,3813.4,3813.2,0.84560214]
[1641171144223,1.4807846,3813.4,3813.3,0.076609]
[1641171144622,1.4807846,3813.4,3813.2,0.84560214]
[1641171144924,1.4807846,3813.4,3813.2,0.5508]
[1641171145122,1.4807846,3813.4,3813.3,0.076609]
[1641171145322,1.7107756,3813.4,3812.9,1.17837386]
[1641171145522,1.4807846,3813.4,3812.9,1.17837386]
[1641171146525,1.18527291,3813.1,3813.0,1.17837386]
[1641171146725,1.18527291,3813.1,3813.0,1.25498286]
[1641171148526,1.18527291,3813.1,3813.0,1.54992446]
[1641171149227,1.18527291,3813.1,3813.0,0.3715506]
[1641171149429,1.4807846,3813.4,3813.0,0.3715506]
[1641171149430,2.22830987,3814.0,3813.1,0.122356]
[1641171150230,2.22830987,3814.0,3813.0,0.2949416]
[1641171150429,0.128157,3813.9,3813.0,0.2949416]
[1641171150632,0.128157,3813.9,3813.8,0.89293398]
[1641171150830,0.358148,3813.9,3813.8,0.89293398]
[1641171151129,0.128157,3813.9,3813.8,0.89293398]
[1641171151530,0.68626062,3813.9,3813.7,0.89293398]
[1641171151829,0.229991,3813.8,3813.7,0.89293398]
[1641171152431,0.78809462,3813.8,3813.7,0.89293398]
[1641171153230,0.55810362,3813.8,3813.7,0.076609]
[1641171153631,0.78809462,3813.8,3813.6,0.89293398]
[1641171153831,0.55810362,3813.8,3813.6,0.89293398]
[1641171154031,0.55810362,3813.8,3813.7,1.26448458]
[1641171154230,0.55810362,3813.8,3813.7,1.99577558]
[1641171154931,0.229991,3813.8,3813.7,1.99577558]
[1641171155130,0.128157,3814.0,3813.7,2.07238458]
[1641171155332,0.128157,3814.0,3813.7,1.99577558]
[1641171155631,0.229991,3813.9,3813.7,1.99577558]
[1641171156231,0.78809462,3813.9,3813.7,1.70083398]
[1641171156834,0.55810362,3813.9,3813.7,1.70083398]
[1641171157036,0.128157,3814.0,3813.8,1.1884774]
[1641171157234,2.91331332,3814.5,3813.8,1.1884774]
[1641171157434,0.128157,3814.4,3813.8,1.1884774]
[1641171157837,1.02122695,3814.4,3813.8,1.1884774]
[1641171158334,0.89306995,3814.3,3813.8,1.1884774]
[1641171158735,1.47966095,3814.0,3813.9,0.89293398]
[1641171159034,1.70965195,3814.0,3813.9,0.89293398]
[1641171159236,2.6027219,3814.0,3813.9,0.89293398]
[1641171159635,1.12306095,3814.0,3813.9,0.89293398]
[1641171159835,1.12306095,3814.0,3813.0,2.52929841]
[1641171159836,1.12306095,3814.0,3813.7,0.89293398]
[1641171160239,0.89306995,3813.9,3813.7,0.89293398]
[1641171160837,1.70930037,3813.8,3813.6,0.89293398]
[1641171161737,1.47930937,3813.7,3813.6,0.89293398]
[1641171161938,1.47930937,3813.7,3813.6,0.96954298]
[1641171162137,1.47930937,3813.7,3813.6,0.89293398]
[1641171163739,1.47930937,3813.7,3813.6,0.96954298]
[1641171163938,1.47930937,3813.8,3813.6,0.96954298]
[1641171164740,1.47930937,3813.7,3813.6,0.96954298]
[1641171164940,1.70930037,3813.7,3813.6,0.96954298]
[1641171165141,1.47930937,3813.7,3813.6,0.96954298]
[1641171166142,1.70930037,3813.7,3813.6,1.22691292]
[1641171166943,1.70930037,3813.7,3813.6,0.89293398]
[1641171167643,1.70930037,3813.7,3813.5,0.89293398]
[1641171168345,1.47930937,3813.7,3813.6,0.076609]
[1641171168545,1.47930937,3813.7,3813.5,0.89293398]
[1641171168745,1.70930037,3813.7,3813.5,0.89293398]
[1641171169145,1.70930037,3813.7,3813.6,1.22691292]
[1641171169746,1.47930937,3813.7,3813.5,0.96954298]
[1641171169944,1.70930037,3813.7,3813.5,0.96954298]
[1641171170145,1.47930937,3813.7,3813.5,0.96954298]
[1641171170848,0.128157,3813.6,3813.5,0.89293398]
[1641171171546,1.02137995,3813.6,3813.5,0.89293398]
[1641171171948,1.02137995,3813.6,3813.2,2.08312706]
[1641171172148,1.02137995,3813.6,3813.2,0.89293398]
[1641171172349,0.89322295,3813.5,3813.2,0.89293398]
[1641171172749,0.229991,3813.4,3813.2,0.89293398]
[1641171173551,2.26632196,3813.4,3813.2,0.89293398]
[1641171174152,0.55815838,3813.3,3813.2,0.89293398]
[1641171175353,0.55815838,3813.3,3813.0,0.89293398]
[1641171175756,0.229991,3813.2,3813.0,0.89293398]
[1641171176357,0.229991,3813.2,3812.9,0.89293398]
[1641171176564,1.73910134,3813.3,3813.0,0.076609]
[1641171177557,1.18094296,3813.3,3813.0,0.076609]
[1641171177759,0.229991,3813.2,3813.0,0.076609]
[1641171177957,1.18094296,3813.3,3813.0,0.204766]
[1641171178364,0.9284368,3813.7,3813.0,1.09769998]
[1641171178365,0.88573503,3813.1,3813.0,1.09769998]
[1641171179762,0.88573503,3813.1,3813.0,0.204766]
[1641171179962,1.30909996,3813.4,3813.0,0.204766]
[1641171179963,0.88573503,3813.3,3813.0,0.54082044]
[1641171180163,0.88573503,3813.3,3813.0,1.73101352]
[1641171180463,0.88573503,3813.3,3813.0,1.60285652]
[1641171181065,1.01389203,3813.4,3813.1,0.33605444]
[1641171181265,0.229991,3813.3,3813.1,0.33605444]
[1641171181764,0.229991,3813.3,3813.0,0.076609]
[1641171181964,0.128157,3813.4,3813.0,0.076609]
[1641171182866,1.01347778,3813.4,3813.1,0.33362737]
[1641171183266,1.01347778,3813.4,3813.2,0.076609]
[1641171184368,1.01347778,3813.4,3813.2,0.96792498]
[1641171185572,0.229991,3813.3,3813.2,0.89131598]
[1641171185871,1.01347778,3813.4,3813.2,0.96792498]
[1641171186073,1.01347778,3813.4,3813.2,0.89131598]
[1641171186572,1.24346878,3813.4,3813.2,0.89131598]
[1641171186771,0.88532078,3813.3,3813.2,0.89131598]
[1641171187372,0.88532078,3813.3,3813.2,0.96792498]
[1641171188476,1.01347778,3813.4,3813.2,1.30199017]
[1641171188674,0.88532078,3813.4,3813.2,1.30199017]
[1641171188872,1.11531178,3813.4,3813.2,1.22538117]
[1641171189878,0.229991,3813.4,3813.2,0.89131598]
[1641171190074,0.229991,3813.4,3813.2,0.076609]
[1641171190274,0.229991,3813.4,3813.0,1.01947298]
[1641171190475,2.234781,3813.4,3813.0,1.01947298]
[1641171190676,2.234781,3813.4,3813.0,0.89131598]
[1641171190874,2.234781,3813.4,3812.8,1.18840108]
[1641171190875,2.234781,3813.4,3812.5,2.00479]
[1641171191078,0.89325605,3813.3,3812.5,2.00479]
[1641171191676,1.45141744,3813.3,3812.7,1.18875147]
[1641171192678,0.55816139,3813.2,3812.6,0.31612237]
[1641171193477,0.55816139,3813.3,3812.6,0.31612237]
[1641171193678,2.03369602,3813.3,3812.6,0.31612237]
[1641171194879,0.55816139,3813.3,3812.6,0.31612237]
[1641171198581,0.55816139,3813.3,3812.7,0.128157]
[1641171198783,0.55816139,3813.3,3812.6,0.31612237]
[1641171201686,1.18160741,3813.1,3812.6,0.31612237]
[1641171202585,1.18160741,3813.1,3812.6,0.44427937]
[1641171202786,1.18160741,3813.1,3812.6,0.31612237]
[1641171205086,1.18160741,3813.1,3812.6,0.44427937]
[1641171205287,1.18160741,3813.1,3812.6,0.31612237]
[1641171207289,1.18160741,3813.1,3812.6,0.44427937]
[1641171207691,1.18160741,3813.1,3812.6,0.31612237]
[1641171208493,1.18160741,3813.1,3812.7,0.31612237]
[1641171209392,1.18160741,3813.1,3812.5,2.00479]
[1641171209393,1.18160741,3813.1,3812.6,0.31612237]
[1641171209991,1.18160741,3813.1,3812.6,0.44427937]
[1641171210393,1.18160741,3813.2,3812.6,0.44427937]
[1641171210794,2.00479,3813.0,3812.6,0.44427937]
[1641171211198,0.88520243,3812.9,3812.7,1.20742706]
[1641171211399,0.88520243,3812.9,3812.8,0.076609]
[1641171212100,0.55816139,3812.9,3812.8,0.076609]
[1641171212700,0.55816139,3812.9,3812.7,0.31612237]
[1641171212899,0.55816139,3812.9,3812.8,0.31612237]
[1641171213098,0.55816139,3812.9,3812.8,0.39273137]
[1641171213503,2.00479,3813.0,3812.7,0.31612237]
[1641171213700,0.229991,3812.9,3812.7,0.31612237]
[1641171214701,0.78830782,3812.9,3812.7,0.39273137]
[1641171215203,0.55831682,3812.9,3812.7,0.39273137]
[1641171215605,2.00479,3813.0,3812.8,0.31612237]
[1641171215804,2.234781,3813.0,3812.8,0.31612237]
[1641171216004,2.00479,3813.0,3812.8,0.31612237]
[1641171216205,2.00479,3813.0,3812.8,0.39273137]
[1641171216505,0.55831386,3812.9,3812.8,0.39273137]
[1641171217106,0.78830486,3812.9,3812.8,0.31612237]
[1641171217307,0.229991,3812.9,3812.8,0.31612237]
[1641171217908,2.00479,3813.0,3812.8,0.39273137]
[1641171218107,0.55831252,3812.9,3812.8,0.076609]
[1641171218808,2.00479,3813.0,3812.8,0.39273137]
[1641171219007,0.229991,3812.9,3812.8,0.31612237]
[1641171219509,2.00479,3813.0,3812.9,0.31612237]
[1641171220310,2.234781,3813.0,3812.9,0.31612237]
[1641171220510,2.00479,3813.0,3812.9,0.31612237]
[1641171220810,2.56311399,3813.0,3812.6,1.50499595]
[1641171221510,0.55832399,3812.9,3812.6,1.50499595]
[1641171221711,0.229991,3812.8,3812.6,1.50499595]
[1641171221910,0.55832399,3812.9,3812.7,0.076609]
[1641171223711,0.55832399,3812.9,3812.8,0.31612237]
[1641171228514,3.48032463,3813.4,3812.8,1.50499595]
[1641171228515,0.88672499,3813.0,3812.8,1.50499595]
[1641171228913,0.88672499,3813.0,3812.9,0.076609]